bitfinex-derivatives/quotes_SOLF0:USTF0_20250709
["timestamp","ask_amount","ask_price","bid_price","bid_amount"]
[1752085918641,6.4571,154.85,154.82,6.4579]
[1752085918947,6.4566,154.86,154.79,4.19688388]
[1752085919136,4.19688388,154.87,154.82,6.4579]
[1752085919336,4.19688388,154.88,154.82,6.4579]
[1752085919544,2.1243,154.89,154.81,4.19688388]
[1752085919745,6.32118388,154.89,154.83,6.4574]
[1752085920142,6.4566,154.86,154.83,6.4574]
[1752085921950,6.4562,154.87,154.84,6.4573]
[1752085922154,6.4562,154.87,154.83,4.19688388]
[1752085922449,6.32118388,154.89,154.81,4.19688388]
[1752085922652,6.32118388,154.89,154.82,6.4579]
[1752085923347,6.4568,154.86,154.83,6.4576]
[1752085924043,6.4569,154.85,154.83,6.4576]
[1752085924651,4.19688388,154.87,154.79,4.19688388]
[1752085924848,4.19688388,154.85,154.79,4.19688388]
[1752085925053,4.19688388,154.83,154.75,4.19688388]
[1752085925248,4.4453,154.82,154.77,6.4602]
[1752085925952,4.19688388,154.81,154.74,4.19688388]
[1752085926452,6.46,154.78,154.75,6.4608]
[1752085926850,4.19688388,154.81,154.74,4.19688388]
[1752085927553,6.4601,154.78,154.75,6.4608]
[1752085927950,8.64218388,154.82,154.74,4.19688388]
[1752085928151,6.4594,154.79,154.76,6.4604]
[1752085928351,6.4594,154.79,154.74,4.19688388]
[1752085928550,8.64218388,154.82,154.74,4.19688388]
[1752085929050,8.64218388,154.82,154.76,4.19688388]
[1752085929448,6.4587,154.81,154.78,6.4595]
[1752085929652,2.2923,154.82,154.76,4.19688388]
[1752085930256,6.4585,154.81,154.78,6.4596]
[1752085930855,2.2923,154.82,154.76,4.19688388]
[1752085932157,2.2923,154.82,154.74,8.85068174]
[1752085932347,6.48918388,154.82,154.74,4.19688388]
[1752085932543,2.2055,154.81,154.74,4.19688388]
[1752085932949,6.4603,154.77,154.75,6.4609]
[1752085933351,6.4603,154.77,154.74,4.19688388]
[1752085933750,6.4603,154.77,154.74,10.65818388]
[1752085934353,6.4603,154.77,154.74,6.4613]
[1752085934654,6.4603,154.77,154.74,10.65818388]
[1752085935151,6.4603,154.77,154.75,6.461]
[1752085935351,2.2055,154.81,154.74,4.19688388]
[1752085936054,2.2055,154.81,154.75,6.4607]
[1752085937155,6.46,154.78,154.75,6.4607]
[1752085937561,6.4595,154.79,154.76,6.4606]
[1752085937858,2.2055,154.81,154.76,6.4606]
[1752085938052,6.4598,154.78,154.76,6.4606]
[1752085938257,6.4598,154.78,154.75,6.4608]
[1752085938751,6.4598,154.78,154.76,6.4605]
[1752085939755,6.4596,154.79,154.76,6.4605]
[1752085939955,2.2923,154.82,154.76,4.19688388]
[1752085940160,2.2923,154.82,154.73,566.57313938]
[1752085940161,6.48918388,154.82,154.74,4.19688388]
[1752085940358,4.19688388,154.8,154.73,6.4615]
[1752085940658,2.2923,154.82,154.71,4.19688388]
[1752085940958,4.19688388,154.79,154.73,6.4616]
[1752085941148,4.19688388,154.79,154.7,8.85313938]
[1752085941352,4.20903249,154.71,154.62,11.75608108]
[1752085941555,6.34053249,154.7,154.61,4.20903249]
[1752085941857,2.1315,154.7,154.66,6.4645]
[1752085942056,396.08,154.75,154.65,4.20903249]
[1752085942258,6.463,154.71,154.65,4.20903249]
[1752085942563,6.34053249,154.74,154.66,6.4646]
[1752085942762,6.463,154.71,154.65,4.20903249]
[1752085942963,6.463,154.71,154.67,6.4643]
[1752085943164,6.463,154.71,154.65,4.20903249]
[1752085943461,6.463,154.71,154.66,6.4644]
[1752085943762,4.20903249,154.73,154.65,4.20903249]
[1752085944062,2.1315,154.74,154.67,4.20903249]
[1752085944961,4.20903249,154.68,154.59,11.75608108]
[1752085945165,4.20903249,154.67,154.56,11.75608108]
[1752085945463,4.21486094,154.72,154.61,6.4666]
[1752085945664,4.21486094,154.65,154.61,6.4666]
[1752085945862,4.21486094,154.65,154.58,4.21486094]
[1752085946058,4.21486094,154.65,154.57,4.21486094]
[1752085946259,4.21486094,154.65,154.56,11.75608108]
[1752085946454,6.4661,154.63,154.6,6.4673]
[1752085946659,4.21486094,154.65,154.6,6.4673]
[1752085947167,6.4661,154.63,154.59,6.4676]
[1752085947355,4.21486094,154.63,154.55,4.21486094]
[1752085947559,6.4671,154.61,154.55,4.21486094]
[1752085948061,4.21486094,154.63,154.55,4.21486094]
[1752085948266,4.21486094,154.61,154.52,66.21486094]
[1752085948664,6.4678,154.59,154.55,6.4691]
[1752085949560,6.4674,154.6,154.56,6.469]
[1752085949764,4.21486094,154.61,154.53,4.21486094]
[1752085950164,6.4676,154.6,154.56,6.4688]
[1752085951064,2.2671,154.63,154.53,4.21486094]
[1752085951259,4.21486094,154.61,154.54,4.21486094]
[1752085951464,2.2671,154.63,154.56,4.21486094]
[1752085951867,2.2671,154.63,154.5,557.88]
[1752085952067,0.0438177,154.61,154.58,0.04721793]
[1752085952372,0.0438177,154.61,154.58,6.51511793]
[1752085952570,0.0438177,154.61,154.58,0.04721793]
[1752085952970,0.0438177,154.61,154.59,6.4674]
[1752085954372,0.0438177,154.61,154.58,0.04721793]
[1752085955468,4.25867864,154.61,154.58,0.04721793]
[1752085956074,6.4677,154.59,154.58,0.04721793]
[1752085956378,4.21486094,154.59,154.5,557.88]
[1752085956567,4.21486094,154.59,154.51,4.21486094]
[1752085956763,4.21486094,154.59,154.5,557.88]
[1752085956967,2.2671,154.63,154.51,4.21486094]
[1752085957173,4.21486094,154.6,154.51,4.21486094]
[1752085957470,6.4686,154.57,154.54,6.4695]
[1752085957667,0.04288571,154.57,154.52,4.21486094]
[1752085957867,0.04288571,154.57,154.51,4.21486094]
[1752085958067,6.51148571,154.57,154.53,6.4699]
[1752085958673,6.51148571,154.57,154.48,1.1362]
[1752085958674,4.25774665,154.57,154.48,1.1362]
[1752085958874,4.25774665,154.57,154.49,4.21486094]
[1752085959277,6.469,154.56,154.52,6.4703]
[1752085959577,0.04178566,154.55,154.52,6.4703]
[1752085959768,0.04178566,154.55,154.49,4.21486094]
[1752085960167,0.04178566,154.55,154.53,6.47]
[1752085960370,0.04178566,154.55,154.51,4.21486094]
[1752085960767,10.68336094,154.58,154.54,6.4698]
[1752085960977,0.04627398,154.55,154.54,6.4698]
[1752085961373,0.04627398,154.55,154.51,4.21486094]
[1752085961979,0.04627398,154.55,154.54,6.4698]
[1752085969896,7.398e-05,154.55,154.54,10.68466094]
[1752085970094,2.2671,154.63,154.54,4.21486094]
[1752085970297,2.2671,154.63,154.58,4.21486094]
[1752085970698,2.2671,154.63,154.51,210.942]
[1752085970898,2.2671,154.63,154.58,4.21486094]
[1752085971198,2.2671,154.63,154.59,6.4675]
[1752085971398,8.7334,154.63,154.59,6.4675]
[1752085971600,2.2671,154.63,154.58,4.21486094]
[1752085971799,2.3217,154.64,154.58,4.21486094]
[1752085972199,8.7875,154.64,154.58,4.21486094]
[1752085972402,8.7875,154.64,154.6,6.4669]
[1752085972601,2.3217,154.64,154.58,4.21486094]
[1752085972797,2.3217,154.64,154.61,6.4668]
[1752085973003,2.3217,154.64,154.58,4.21486094]
[1752085973602,8.7876,154.64,154.6,6.467]
[1752085975502,2.3217,154.64,154.61,6.4668]
[1752085977500,2.3217,154.64,154.62,6.4664]
[1752085977706,10.67976094,154.66,154.62,6.4664]
[1752085977906,2.3498,154.69,154.62,4.21486094]
[1752085978202,138.60861753,154.67,154.63,6.4658]
[1752085978505,132.14391753,154.67,154.62,4.21486094]
[1752085978703,6.56466094,154.69,154.62,4.21486094]
[1752085979405,13.02836094,154.69,154.65,6.4649]
[1752085979814,2.1605,154.7,154.64,4.21486094]
[1752085980111,6.4638,154.69,154.65,6.465]
[1752085980906,6.4638,154.69,154.66,6.4648]
[1752085981107,8.6238,154.7,154.66,6.4648]
[1752085981306,8.6238,154.7,154.64,4.21486094]
[1752085982010,2.1605,154.7,154.64,4.21486094]
[1752085982211,2.1605,154.7,154.67,6.4641]
[1752085982405,6.4626,154.72,154.66,4.21486094]
[1752085982604,2.1809,154.74,154.69,6.4633]
[1752085982802,4.21486094,154.73,154.66,4.21486094]
[1752085983307,2.1809,154.74,154.68,6.4637]
[1752085983612,6.4627,154.72,154.68,6.4637]
[1752085984412,6.4621,154.73,154.68,4.21486094]
[1752085984600,2.1809,154.74,154.68,4.21486094]
[1752085985204,2.1809,154.74,154.67,4.21486094]
[1752085985409,6.4627,154.72,154.68,6.4638]
[1752085986007,2.1809,154.74,154.67,6.4643]
[1752085986008,4.21486094,154.73,154.67,6.4643]
[1752085986203,4.21486094,154.71,154.65,4.21486094]
[1752085986605,4.21486094,154.71,154.63,4.21486094]
[1752085987208,6.4638,154.69,154.65,6.4648]
[1752085987511,4.21486094,154.69,154.65,6.4648]
[1752085987909,4.21486094,154.67,154.63,6.4657]
[1752085988209,4.21486094,154.67,154.59,4.21486094]
[1752085988413,4.21486094,154.65,154.59,4.21486094]
[1752085988814,4.21486094,154.65,154.57,4.21486094]
[1752085989015,6.4658,154.64,154.61,6.4669]
[1752085989308,4.21486094,154.65,154.57,4.21486094]
[1752085989715,6.4661,154.63,154.6,6.467]
[1752085989917,2.1377,154.68,154.57,4.21486094]
[1752085990212,4.21486094,154.65,154.6,6.4671]
[1752085990412,4.21486094,154.65,154.57,4.21486094]
[1752085990917,6.466,154.64,154.55,62.0]
[1752085991213,6.466,154.64,154.57,4.21486094]
[1752085992314,4.21486094,154.65,154.57,4.21486094]
[1752085992315,6.4661,154.63,154.6,6.4671]
[1752085992514,4.21486094,154.65,154.56,4.21486094]
[1752085993207,6.4667,154.62,154.59,6.4677]
[1752085993611,4.21486094,154.65,154.59,6.4677]
[1752085994009,6.4663,154.63,154.59,6.4677]
[1752085994213,6.4663,154.63,154.6,6.4672]
[1752085996021,10.68046094,154.64,154.61,6.4666]
[1752085996623,4.21486094,154.67,154.56,4.21486094]
[1752085996815,4.21486094,154.67,154.6,4.21486094]
[1752085997319,6.4651,154.66,154.62,6.4664]
[1752085997819,6.4651,154.66,154.59,4.21486094]
[1752085998320,4.21486094,154.65,154.59,4.21486094]
[1752085998621,4.21486094,154.65,154.57,4.21486094]
[1752085999015,6.4662,154.63,154.6,6.467]
[1752085999315,4.21486094,154.65,154.57,4.21486094]
[1752085999519,6.4667,154.62,154.59,6.4675]
[1752085999717,4.21486094,154.63,154.57,4.21486094]
[1752086000118,6.4669,154.62,154.55,4.21486094]
[1752086001419,6.4669,154.62,154.58,6.4679]
[1752086002209,6.4669,154.62,154.59,6.4676]
[1752086002409,2.1377,154.68,154.57,4.21486094]
[1752086002615,4.21486094,154.65,154.59,6.4674]
[1752086002817,4.21486094,154.65,154.57,4.21486094]
[1752086003020,6.4664,154.63,154.57,4.21486094]
[1752086003917,6.4658,154.64,154.54,62.0]
[1752086004117,6.4658,154.64,154.59,4.21486094]
[1752086004422,6.4649,154.66,154.59,4.21486094]
[1752086005315,6.4652,154.65,154.59,4.21486094]
[1752086005620,6.4652,154.65,154.62,6.4664]
[1752086005820,6.465,154.66,154.59,4.21486094]
[1752086006215,6.465,154.66,154.63,6.466]
[1752086007310,2.1377,154.68,154.61,4.21486094]
[1752086008522,6.4645,154.67,154.64,6.4654]
[1752086009321,2.1377,154.68,154.64,6.4654]
[1752086009322,8.6019,154.68,154.64,6.4654]
[1752086009927,6.4644,154.67,154.64,6.4654]
[1752086011638,6.4644,154.67,154.65,6.4652]
[1752086011937,2.1377,154.68,154.61,4.21486094]
[1752086013143,6.4647,154.67,154.64,6.4653]
[1752086013542,6.4647,154.67,154.61,4.21486094]
[1752086013841,6.4647,154.67,154.65,6.4652]
[1752086014236,8.6019,154.68,154.65,6.4652]
[1752086014632,2.1387,154.7,154.63,4.21486094]
[1752086015336,6.4638,154.69,154.63,4.21486094]
[1752086015942,6.4638,154.69,154.66,6.4646]
[1752086016432,6.464,154.68,154.63,4.21486094]
[1752086016636,6.464,154.68,154.65,6.465]
[1752086017644,6.4637,154.69,154.66,6.4648]
[1752086019145,6.4641,154.68,154.66,6.4648]
[1752086019346,6.4641,154.68,154.65,6.4651]
[1752086019548,6.4641,154.68,154.63,4.21486094]
[1752086020645,6.4641,154.68,154.65,6.465]
[1752086021445,6.4641,154.68,154.66,6.4648]
[1752086021646,6.4637,154.69,154.66,6.4648]
[1752086022148,6.464,154.68,154.66,6.4648]
[1752086022448,6.35356094,154.7,154.66,6.4648]
[1752086022746,6.4639,154.69,154.66,6.4648]
[1752086023241,6.4636,154.69,154.66,6.4648]
[1752086023444,6.35356094,154.7,154.66,6.4648]
[1752086023747,6.4639,154.69,154.66,6.4648]
[1752086024247,6.464,154.68,154.6,12.9344]
[1752086024445,4.21414313,154.66,154.58,11.75608108]
[1752086024646,4.21414313,154.61,154.54,4.21414313]
[1752086024848,4.21414313,154.61,154.59,6.4675]
[1752086025250,10.68124313,154.61,154.58,6.4679]
[1752086025450,201.35414313,154.63,154.56,4.21414313]
[1752086026051,201.35414313,154.63,154.59,6.4674]
[1752086026254,197.14,154.63,154.59,6.4674]
[1752086026846,6.4667,154.62,154.59,6.4674]
[1752086028249,6.4667,154.62,154.58,6.4679]
[1752086028654,6.4667,154.62,154.55,4.21550678]
[1752086029264,6.4667,154.62,154.59,6.4676]
[1752086029558,4.21550678,154.6,154.51,4.21550678]
[1752086029750,4.21550678,154.6,154.56,6.4686]
[1752086029949,10.68300678,154.6,154.56,6.4686]
[1752086030461,10.68300678,154.6,154.57,6.4685]
[1752086030761,6.4678,154.59,154.53,4.21550678]
[1752086030961,6.4678,154.59,154.56,6.4689]
[1752086031759,6.4678,154.59,154.55,6.4692]
[1752086031963,6.4682,154.58,154.53,4.21550678]
[1752086032561,6.4686,154.57,154.54,6.4695]
[1752086032865,4.21550678,154.58,154.51,13.10399103]
[1752086033253,6.4692,154.56,154.53,6.47]
[1752086033652,4.21550678,154.58,154.51,13.10399103]
[1752086033856,2.2723,154.58,154.51,13.10399103]
[1752086034557,6.4692,154.56,154.53,6.47]
[1752086035562,6.4687,154.57,154.54,6.4698]
[1752086038564,8.7405,154.58,154.55,6.4691]
[1752086038758,6.4682,154.58,154.55,6.4691]
[1752086040464,6.4682,154.58,154.56,6.469]
[1752086040962,12.89980678,154.59,154.56,6.469]
[1752086041568,12.89980678,154.59,154.53,4.21550678]
[1752086041569,2.2164,154.59,154.58,6.4681]
[1752086041768,6.4671,154.61,154.58,6.4681]
[1752086042075,6.467,154.61,154.58,6.4681]
[1752086043369,10.68220678,154.62,154.59,6.4675]
[1752086043566,10.68220678,154.62,154.55,4.21550678]
[1752086043759,6.47620678,154.63,154.55,4.21550678]
[1752086043959,6.4665,154.62,154.55,4.21550678]
[1752086044165,4.21550678,154.64,154.57,4.21550678]
[1752086044570,6.4662,154.63,154.6,6.4671]
[1752086045770,10.68130678,154.64,154.61,6.4668]
[1752086046369,6.4661,154.63,154.6,6.4669]
[1752086046668,4.21550678,154.64,154.6,6.4669]
[1752086047065,2.1795,154.65,154.61,6.4666]
[1752086047269,6.39500678,154.65,154.61,6.4666]
[1752086047470,6.4663,154.63,154.61,6.4666]
[1752086048470,6.4663,154.63,154.6,6.4671]
[1752086048670,6.4663,154.63,154.57,4.21550678]
[1752086049073,6.4663,154.63,154.6,6.467]
[1752086049471,6.4663,154.63,154.57,4.21550678]
[1752086050973,6.4663,154.63,154.6,6.4671]
[1752086051275,6.4657,154.64,154.57,4.21550678]
[1752086051473,2.1795,154.65,154.59,4.21550678]
[1752086051775,2.1795,154.65,154.61,4.21550678]
[1752086051970,2.1795,154.65,154.62,6.4664]
[1752086053973,8.6448,154.65,154.6,4.21550678]
[1752086054173,2.1795,154.65,154.6,4.21550678]
[1752086054363,2.1795,154.65,154.63,6.466]
[1752086056276,198.9932,154.7,154.6,4.21550678]
[1752086056475,4.21550678,154.68,154.6,4.21550678]
[1752086056676,6.465,154.66,154.62,6.4661]
[1752086057476,6.4652,154.66,154.62,6.4661]
[1752086058178,6.4652,154.66,154.63,6.466]
[1752086059982,4.21550678,154.66,154.59,4.21550678]
[1752086060180,4.21550678,154.64,154.55,8.88848425]
[1752086060378,4.21550678,154.6,154.53,4.21550678]
[1752086060580,2.2019,154.63,154.5,571.76399103]
[1752086060581,6.4688,154.57,154.5,571.76399103]
[1752086060784,4.21550678,154.58,154.5,571.76399103]
[1752086061080,10.68380678,154.58,154.55,6.4692]
[1752086061474,4.21550678,154.58,154.5,571.76399103]
[1752086061670,6.4688,154.57,154.54,6.4696]
[1752086061970,4.21550678,154.58,154.5,562.87550678]
[1752086062173,220.4232,154.63,154.49,8.88848425]
[1752086062372,4.21550678,154.53,154.47,8.88848425]
[1752086062577,4.21550678,154.53,154.46,4.21550678]
[1752086063279,10.68580678,154.53,154.46,4.21550678]
[1752086063982,4.21550678,154.55,154.46,4.21550678]
[1752086064583,10.68530678,154.55,154.46,4.21550678]
[1752086064778,4.21550678,154.55,154.45,8.88848425]
[1752086064976,4.21550678,154.55,154.47,4.21550678]
[1752086065272,6.4701,154.54,154.47,4.21550678]
[1752086065879,6.4701,154.54,154.5,6.4712]
[1752086067773,6.4703,154.53,154.5,6.4712]
[1752086067978,6.4703,154.53,154.49,6.4718]
[1752086070386,6.4703,154.53,154.5,6.4715]
[1752086070883,4.4807,154.57,154.52,6.4703]
[1752086071083,4.21550678,154.56,154.52,6.4703]
[1752086071380,6.4691,154.56,154.48,4.21550678]
[1752086071586,10.68460678,154.56,154.48,4.21550678]
[1752086071880,4.21550678,154.56,154.48,4.21550678]
[1752086072086,6.4694,154.55,154.51,6.4707]
[1752086072482,6.4694,154.55,154.49,4.21550678]
[1752086073488,10.68450678,154.56,154.52,6.4703]
[1752086074089,4.21550678,154.56,154.54,6.4697]
[1752086074387,10.9493,154.57,154.49,4.21550678]
[1752086074588,10.9493,154.57,154.53,6.4699]
[1752086074981,4.4807,154.57,154.5,4.21550678]
[1752086075178,4.21550678,154.6,154.52,4.21550678]
[1752086075587,6.468,154.59,154.55,6.4692]
[1752086076086,10.68300678,154.6,154.52,4.21550678]
[1752086076285,4.21550678,154.6,154.56,6.4687]
[1752086078487,10.68310678,154.6,154.56,6.4687]
[1752086078687,6.4676,154.6,154.57,6.4685]
[1752086078984,4.21550678,154.62,154.54,4.21550678]
[1752086079190,4.21550678,154.62,154.59,6.4675]
[1752086079589,4.21550678,154.62,154.58,6.4679]
[1752086079988,6.4672,154.61,154.54,4.21550678]
[1752086081291,6.4672,154.61,154.51,8.87042173]
[1752086081486,6.4672,154.61,154.55,4.21550678]
[1752086082787,6.4676,154.6,154.55,4.21550678]
[1752086083883,6.468,154.59,154.51,8.87042173]
[1752086084093,4.21550678,154.61,154.54,4.21550678]
[1752086084489,6.4678,154.59,154.55,6.4692]
[1752086085690,6.4682,154.58,154.55,6.4692]
[1752086086289,6.4687,154.57,154.54,6.4697]
[1752086086591,4.6341,154.63,154.53,4.21550678]
[1752086086592,4.21550678,154.6,154.53,4.21550678]
[1752086086794,6.4676,154.6,154.53,4.21550678]
[1752086086991,4.21550678,154.62,154.53,4.21550678]
[1752086087188,4.21550678,154.62,154.55,4.21550678]
[1752086087591,6.4672,154.61,154.57,6.4683]
[1752086088594,6.4674,154.6,154.57,6.4683]
[1752086089696,6.4671,154.61,154.54,4.21550678]
[1752086091295,6.4671,154.61,154.57,6.4683]
[1752086092199,8.84960678,154.63,154.54,4.21550678]
[1752086093299,6.4671,154.61,154.57,6.4683]
[1752086093597,8.84960678,154.63,154.54,4.21550678]
[1752086093799,6.467,154.61,154.54,4.21550678]
[1752086094598,6.467,154.61,154.58,6.4681]
[1752086095398,6.467,154.61,154.57,6.4684]
[1752086095598,6.467,154.61,154.54,4.21550678]
[1752086095899,6.4675,154.6,154.54,4.21550678]
[1752086096303,6.4675,154.6,154.52,8.87042173]
[1752086096596,10.68260678,154.61,154.54,4.21550678]
[1752086096799,6.4671,154.61,154.54,4.21550678]
[1752086097195,8.84960678,154.63,154.57,6.4683]
[1752086097499,8.84960678,154.63,154.54,4.21550678]
[1752086097697,4.21550678,154.61,154.51,8.87042173]
[1752086097891,24.0141,154.63,154.5,8.87042173]
[1752086098096,24.0141,154.63,154.42,128.90596712]
[1752086098097,4.21550678,154.52,154.43,11.75608108]
[1752086098292,24.0141,154.63,154.42,105.47021109]
[1752086098293,4.21550678,154.55,154.47,4.21550678]
[1752086098496,4.21550678,154.55,154.49,4.21550678]
[1752086098898,10.68520678,154.55,154.49,4.21550678]
[1752086099300,10.68520678,154.55,154.52,6.4704]
[1752086099603,6.4691,154.56,154.49,4.21550678]
[1752086099807,6.4691,154.56,154.53,6.4702]
[1752086100500,6.4691,154.56,154.46,11.75608108]
[1752086100501,6.4684,154.58,154.51,4.21550678]
[1752086100704,4.21550678,154.59,154.51,4.21550678]
[1752086101096,6.4686,154.57,154.54,6.4696]
[1752086101299,4.21550678,154.59,154.48,78.21498108]
[1752086101603,6.4693,154.56,154.52,6.4704]
[1752086101803,4.21550678,154.57,154.52,6.4704]
[1752086102196,6.4692,154.56,154.53,6.4702]
[1752086102603,4.21550678,154.57,154.5,4.21550678]
[1752086103106,4.21550678,154.57,154.53,6.4699]
[1752086103312,4.21550678,154.57,154.48,4.4589]
[1752086103603,4.21550678,154.57,154.49,4.21550678]
[1752086103905,6.4696,154.55,154.52,6.4704]
[1752086104504,6.4693,154.56,154.49,4.21550678]
[1752086104903,6.4693,154.56,154.53,6.47]
[1752086105699,6.4688,154.57,154.54,6.4696]
[1752086105900,4.21550678,154.6,154.51,4.21550678]
[1752086106101,6.4681,154.59,154.55,6.4691]
[1752086106405,6.4681,154.59,154.51,4.21550678]
[1752086106607,4.21550678,154.6,154.51,4.21550678]
[1752086107605,4.21550678,154.6,154.56,6.4687]
[1752086108608,10.68300678,154.6,154.57,6.4685]
[1752086108809,10.68300678,154.6,154.53,4.21550678]
[1752086109198,10.68300678,154.6,154.56,6.4687]
[1752086109402,6.4677,154.59,154.56,6.4687]
[1752086111312,4.21550678,154.6,154.57,6.4685]
[1752086111503,4.21550678,154.6,154.53,4.21550678]
[1752086112210,10.68300678,154.6,154.53,4.21550678]
[1752086113604,4.21550678,154.62,154.55,4.21550678]
[1752086114105,4.21550678,154.62,154.59,6.4675]
[1752086114407,8.84960678,154.63,154.57,4.21550678]
[1752086114613,4.21550678,154.64,154.57,4.21550678]
[1752086115613,10.68140678,154.64,154.6,6.4671]
[1752086115809,558.56,154.66,154.57,4.21550678]
[1752086116113,6.4655,154.65,154.61,6.4666]
[1752086116316,558.56,154.66,154.59,4.21550678]
[1752086116518,4.21550678,154.67,154.61,4.21550678]
[1752086116815,10.68000678,154.67,154.63,6.4658]
[1752086117115,10.68000678,154.67,154.61,4.21550678]
[1752086117116,4.21550678,154.68,154.61,4.21550678]
[1752086117412,4.21550678,154.68,154.63,6.4658]
[1752086118009,6.4647,154.67,154.63,6.4658]
[1752086118206,4.21550678,154.68,154.63,6.4658]
[1752086118515,6.4648,154.66,154.63,6.4658]
[1752086120313,2.2282,154.69,154.56,11.75608108]
[1752086120512,2.2282,154.69,154.45,23.43575603]
[1752086120513,8.431081,154.57,154.45,23.43575603]
[1752086120709,390.82,154.56,154.43,6.5669405]
[1752086120908,10.6852405,154.55,154.47,4.2155405]
[1752086121406,10.6852405,154.55,154.5,6.4711]
[1752086121616,4.2155405,154.55,154.47,4.2155405]
[1752086121817,4.2155405,154.55,154.44,2.3175]
[1752086122009,4.2155405,154.55,154.47,4.2155405]
[1752086122814,10.6853405,154.55,154.5,6.4711]
[1752086123016,4.2155405,154.55,154.5,6.4711]
[1752086123811,4.2155405,154.55,154.49,6.4718]
[1752086124315,4.2155405,154.55,154.47,4.2155405]
[1752086124316,4.2155405,154.55,154.5,6.4715]
[1752086124814,6.4699,154.54,154.5,6.4715]
[1752086125414,9.03171554,154.6,154.53,4.2155405]
[1752086125608,4.21371411,154.67,154.51,563.2917]
[1752086125804,4.21371411,154.68,154.61,6.4666]
[1752086126008,4.21371411,154.68,154.56,394.97371411]
[1752086126410,10.67791411,154.68,154.63,6.4658]
[1752086126612,4.21371411,154.68,154.61,4.21371411]
[1752086126812,13.50761554,154.71,154.61,4.21371411]
[1752086127009,10.67801411,154.68,154.63,6.4658]
[1752086128218,10.67801411,154.68,154.61,4.21371411]
[1752086128717,10.67801411,154.68,154.63,6.4657]
[1752086129617,6.4643,154.68,154.63,6.4657]
[1752086129815,4.21371411,154.69,154.58,4.4458]
[1752086130015,3.90245179,154.68,154.61,4.21371411]
[1752086130211,4.21371411,154.69,154.61,4.21371411]
[1752086130716,6.4644,154.67,154.63,6.4658]
[1752086133214,4.21371411,154.67,154.61,6.4666]
[1752086133417,4.21371411,154.67,154.59,4.21371411]
[1752086133618,4.21371411,154.68,154.59,4.21371411]
[1752086134820,6.4647,154.67,154.59,4.21371411]
[1752086135313,6.4647,154.67,154.63,6.4658]
[1752086136318,6.4649,154.66,154.62,6.4664]
[1752086136619,6.4649,154.66,154.61,4.21371411]
[1752086137232,6.4645,154.67,154.63,6.466]
[1752086138122,4.21371411,154.68,154.63,6.466]
[1752086138123,6.4648,154.66,154.63,6.466]
[1752086138716,6.4648,154.66,154.56,199.51371411]
[1752086138717,8.42742822,154.64,154.46,23.43575603]
[1752086138913,4.21371411,154.59,154.51,4.21371411]
[1752086139319,10.68171411,154.59,154.51,4.21371411]
[1752086139519,4.21371411,154.59,154.5,2.3116]
[1752086139718,6.4682,154.58,154.54,6.4695]
[1752086139923,6.4682,154.58,154.51,4.21371411]
[1752086140723,10.68151411,154.59,154.51,4.21371411]
[1752086141524,6.4683,154.58,154.54,6.4697]
[1752086142127,6.4683,154.58,154.51,4.21371411]
[1752086142728,6.4683,154.58,154.54,6.4695]
[1752086142927,6.4683,154.58,154.51,4.21371411]
[1752086143527,10.68171411,154.59,154.55,6.4693]
[1752086143729,4.3799,154.63,154.53,4.21371411]
[1752086143925,4.21371411,154.6,154.53,4.21371411]
[1752086144126,10.68141411,154.6,154.56,6.4689]
[1752086145327,4.21371411,154.6,154.57,6.4685]
[1752086145523,4.21371411,154.6,154.53,4.21371411]
[1752086145925,4.21371411,154.62,154.53,4.21371411]
[1752086146122,4.21371411,154.62,154.55,4.21371411]
[1752086146331,4.21371411,154.62,154.6,6.4672]
[1752086146926,6.4657,154.64,154.61,6.4669]
[1752086147122,4.21371411,154.64,154.61,6.4669]
[1752086147328,4.21371411,154.64,154.57,4.21371411]
[1752086148334,10.67871411,154.66,154.62,6.4665]
[1752086149837,6.4653,154.65,154.62,6.4665]
[1752086150133,4.21371411,154.66,154.58,2.1915]
[1752086150434,6.4654,154.65,154.61,6.4668]
[1752086150630,4.21371411,154.66,154.61,6.4668]
[1752086151028,133.17742105,154.67,154.61,6.4668]
[1752086151229,4.21371411,154.65,154.61,6.4668]